bitfinex/quotes_ETHUSD_20240614
["timestamp","ask_amount","ask_price","bid_price","bid_amount"]
[1718404402904,2.88475,3466.5,3465.9,2.88524]
[1718404403113,0.576934,3466.4,3465.9,2.88524]
[1718404403394,2.88461,3466.7,3465.8,2.3526]
[1718404403597,1.33700488,3467.0,3465.8,2.3526]
[1718404403598,3.47470856,3467.0,3466.4,2.88481]
[1718404403760,2.88435,3467.0,3466.4,2.88481]
[1718404404089,3.60887164,3466.9,3466.4,2.88481]
[1718404404494,0.72444164,3466.9,3466.4,2.88481]
[1718404404697,4.31797514,3466.8,3465.7,2.3526]
[1718404404858,2.88506,3466.2,3465.7,2.3526]
[1718404405058,2.88506,3466.2,3465.7,5.23801]
[1718404405370,0.57699,3466.1,3465.7,2.3526]
[1718404405767,3.46208,3466.1,3465.7,2.3526]
[1718404405968,3.46208,3466.1,3465.1,5.2385]
[1718404405969,3.46212,3466.1,3465.1,5.2385]
[1718404406156,2.88542,3465.7,3465.1,5.2385]
[1718404406580,2.88551,3465.6,3465.1,5.2385]
[1718404406794,2.88559,3465.5,3465.1,2.3526]
[1718404410502,4.31903514,3465.5,3465.1,2.3526]
[1718404410692,2.88583,3465.2,3465.1,2.3526]
[1718404412316,2.88576,3465.3,3465.1,2.3526]
[1718404417782,2.88568,3465.4,3465.1,2.3526]
[1718404418120,0.42220696,3465.3,3465.1,2.3526]
[1718404423125,2.8842,3467.2,3465.8,2.3102]
[1718404423330,4.31813514,3466.6,3465.8,5.19552]
[1718404423505,4.31813514,3466.6,3466.0,2.88511]
[1718404423704,1.43344514,3466.6,3466.1,2.88508]
[1718404424019,2.88426,3467.1,3466.3,2.88491]
[1718404424221,2.46389769,3467.0,3466.5,2.88474]
[1718404424426,1.03045255,3467.0,3466.5,2.88469]
[1718404424628,1.03045255,3467.0,3466.1,2.88504]
[1718404424927,2.88448,3466.9,3466.3,2.88484]
[1718404425113,2.88448,3466.9,3466.4,2.88483]
[1718404425301,0.85209277,3466.8,3466.4,2.88483]
[1718404425707,0.85209277,3466.8,3466.3,2.88491]
[1718404426693,2.88467,3466.6,3466.0,2.88515]
[1718404426898,4.02496277,3466.8,3466.1,2.88505]
[1718404427140,2.88468,3466.6,3466.1,2.88505]
[1718404427439,2.88468,3466.6,3465.8,5.19546]
[1718404427440,2.88508,3466.2,3465.8,2.3102]
[1718404428498,2.88499,3466.3,3465.8,2.3102]
[1718404428708,1.43344514,3466.3,3465.8,2.3102]
[1718404428905,2.88524,3466.0,3465.8,2.3102]
[1718404429398,2.88525,3465.9,3465.8,2.3102]
[1718404429834,2.88518,3466.0,3465.8,2.3102]
[1718404429995,3.82110558,3466.0,3465.8,2.3102]
[1718404432553,2.88487,3466.4,3465.9,2.88525]
[1718404432554,0.2883,3466.4,3465.9,2.88525]
[1718404432740,0.69096428,3466.5,3466.0,2.88516]
[1718404433150,0.69096428,3466.5,3466.1,2.88508]
[1718404433731,3.57571428,3466.5,3465.9,2.88523]
[1718404434036,0.35757143,3466.4,3465.9,2.88523]
[1718404435552,3.24242143,3466.4,3465.8,5.19552]
[1718404436861,2.88498,3466.3,3465.8,2.3102]
[1718404437218,2.88502,3466.2,3465.8,2.3102]
[1718404438218,2.88509,3466.1,3465.8,2.3102]
[1718404438419,0.2883,3466.0,3465.3,2.3307]
[1718404438620,2.88542,3465.7,3465.3,2.3307]
[1718404438951,2.88551,3465.6,3465.3,2.3307]
[1718404439743,0.59617414,3465.4,3465.3,2.3307]
[1718404442055,0.35757143,3466.4,3465.3,2.3307]
[1718404442056,0.59618787,3466.1,3466.0,5.77034]
[1718404442359,0.59618787,3466.5,3466.3,2.88492]
[1718404442664,1.49044908,3466.7,3466.4,2.88476]
[1718404442863,3.38295887,3467.1,3466.5,2.88469]
[1718404442864,0.59618787,3466.6,3466.5,2.88469]
[1718404443840,0.89426121,3466.7,3466.5,2.88469]
[1718404444042,0.89426121,3466.6,3466.5,2.88469]
[1718404444726,0.89426121,3466.6,3466.3,2.88491]
[1718404444927,0.59611157,3466.4,3466.3,2.88491]
[1718404445360,0.89426121,3466.6,3466.3,2.88491]
[1718404445361,0.59611157,3466.5,3466.3,2.88491]
[1718404445568,0.59585656,3466.5,3466.4,2.88483]
[1718404445773,0.59585656,3466.5,3466.4,2.83483]
[1718404447945,0.89426121,3466.7,3466.4,2.83483]
[1718404447946,0.59585656,3466.6,3466.4,2.83483]
[1718404449155,0.59585656,3466.6,3466.5,2.88475]
[1718404449485,0.59585656,3466.8,3466.5,2.88475]
[1718404449641,0.59585656,3466.8,3466.7,8.09986]
[1718404449840,1.48936262,3467.2,3466.7,8.09986]
[1718404449841,0.59585656,3467.2,3467.1,5.7685]
[1718404450075,0.89426121,3467.4,3467.3,2.88408]
[1718404450076,0.59585656,3467.4,3467.3,2.88408]
[1718404450277,4.25075601,3468.0,3467.4,2.884]
[1718404450278,0.59585656,3467.6,3467.4,2.884]
[1718404450477,0.59585656,3467.7,3467.5,2.88384]
[1718404450782,0.59585656,3467.7,3467.6,5.24063]
[1718404450983,0.2682466,3467.7,3467.0,2.88429]
[1718404451282,0.2682466,3467.7,3466.8,2.3568]
[1718404451283,0.59585656,3467.4,3466.8,2.3568]
[1718404451484,3.47995656,3467.3,3466.8,5.24129]
[1718404451689,0.59585656,3467.1,3466.8,2.3568]
[1718404453184,3.48010656,3467.1,3466.8,2.3568]
[1718404453402,0.43743678,3467.0,3466.8,2.3568]
[1718404453606,0.59585656,3467.2,3467.0,2.88431]
[1718404453805,0.59585656,3467.4,3467.0,2.88431]
[1718404454117,2.32770635,3467.6,3467.1,2.88424]
[1718404454118,0.59585656,3467.5,3467.1,2.88424]
[1718404454280,0.89426121,3467.6,3466.8,2.3568]
[1718404454281,0.59585656,3467.6,3466.8,2.3568]
[1718404454467,1.19234828,3467.9,3467.7,2.88375]
[1718404454468,0.59585656,3467.8,3467.7,2.88375]
[1718404454669,0.59585656,3467.9,3467.8,2.88365]
[1718404454978,0.59585656,3468.0,3467.9,2.88358]
[1718404455177,1.48617032,3468.5,3467.6,2.3568]
[1718404455178,0.59585656,3468.3,3467.6,2.3568]
[1718404455396,0.59585656,3468.1,3467.5,2.88383]
[1718404455608,0.29235629,3468.0,3467.5,2.88383]
[1718404457383,1.72580143,3468.0,3467.2,2.3568]
[1718404457679,0.59585656,3467.9,3467.2,2.3568]
[1718404459116,2.88377,3467.7,3466.8,2.3568]
[1718404459266,0.59585656,3467.4,3466.8,2.3568]
[1718404459468,0.59585656,3467.4,3466.8,5.2413]
[1718404459469,0.34735629,3467.3,3466.8,5.2413]
[1718404459668,0.34735629,3467.3,3466.8,2.3568]
[1718404460311,0.94321285,3467.3,3466.8,2.3568]
[1718404461042,0.34735629,3467.3,3466.8,2.3568]
[1718404461333,0.94321285,3467.3,3466.8,2.3568]
[1718404461529,0.61549292,3467.2,3466.8,2.3568]
[1718404462189,3.49966292,3467.2,3466.5,2.88474]
[1718404462390,2.88448,3466.9,3466.4,2.3568]
[1718404462905,2.88448,3466.9,3466.4,5.24163]
[1718404463404,2.88435,3467.0,3466.4,5.24163]
[1718404463602,2.88444,3466.9,3466.4,5.24163]
[1718404464593,2.88457,3466.8,3466.4,2.3568]
[1718404465015,2.88457,3466.8,3466.4,5.24162]
[1718404465193,4.04883809,3467.0,3466.5,2.8847]
[1718404465534,3.93164239,3466.9,3466.4,5.24163]
[1718404467012,3.93164239,3466.9,3465.9,2.3568]
[1718404467013,0.59585656,3466.7,3465.9,2.3568]
[1718404467220,2.88476,3466.5,3465.9,2.3568]
[1718404467730,3.48061656,3466.5,3465.9,5.24203]
[1718404468031,2.88476,3466.5,3466.0,2.88515]
[1718404468348,0.42145148,3466.5,3466.1,2.88502]
[1718404468528,1.43344514,3466.8,3466.4,2.88477]
[1718404468529,0.59585656,3466.8,3466.4,2.88477]
[1718404469126,0.59585656,3466.9,3466.6,2.8846]
[1718404469329,0.59585656,3466.9,3466.7,2.88452]
[1718404469529,0.59585656,3467.1,3466.7,5.24132]
[1718404470310,0.59585656,3467.0,3466.7,2.3568]
[1718404470506,0.59585656,3466.9,3466.7,2.3568]
[1718404471031,2.88493,3466.3,3466.1,2.2823]
[1718404471826,0.5937708,3466.4,3466.1,2.2823]
[1718404471827,3.4786208,3466.4,3466.1,2.2823]
[1718404473008,2.88485,3466.4,3466.1,2.2823]
[1718404474007,3.4786208,3466.4,3466.1,2.2823]
[1718404474813,2.88485,3466.4,3466.1,2.2823]
[1718404475032,3.77894121,3466.6,3466.2,2.88499]
[1718404475033,0.5937708,3466.6,3466.2,2.88499]
[1718404475354,0.5937708,3466.8,3466.4,2.88482]
[1718404475569,4.36749328,3467.3,3466.2,0.805233]
[1718404475570,0.5937708,3467.0,3466.9,5.16672]
[1718404475909,0.5937708,3467.2,3466.9,5.16672]
[1718404476028,0.5937708,3467.3,3467.0,2.88433]
[1718404476230,0.5937708,3467.3,3467.1,2.88422]
[1718404476756,0.5937708,3467.3,3466.9,5.16667]
[1718404477051,0.5937708,3467.2,3466.9,5.16667]
[1718404477490,0.5937708,3467.3,3467.1,2.88425]
[1718404477759,0.5937708,3467.5,3467.1,2.88421]
[1718404477965,0.5937708,3467.7,3467.2,0.05767772]
[1718404478164,0.5937708,3467.9,3467.6,2.88377]
[1718404478463,0.5937708,3468.0,3467.7,5.16599]
[1718404478647,0.5937708,3467.9,3467.7,5.16599]
[1718404479158,0.5937708,3468.0,3467.7,5.16599]
[1718404479967,0.5937708,3468.0,3467.7,2.2823]
[1718404480173,0.5937708,3468.0,3467.7,5.16604]
[1718404480943,0.5937708,3467.9,3467.7,2.2823]
[1718404481146,0.89426121,3468.1,3467.7,2.2823]
[1718404481147,0.5937708,3468.0,3467.7,2.2823]
[1718404482067,1.43846783,3468.0,3467.4,2.88399]
[1718404482282,0.5937708,3467.8,3467.4,2.88399]
[1718404482454,0.5937708,3467.8,3467.5,2.88391]
[1718404482635,0.5937708,3467.7,3467.5,2.88391]
[1718404483037,2.88391,3467.6,3467.0,2.88432]
[1718404483545,0.5937708,3467.5,3466.8,5.16677]
[1718404483768,0.5937708,3467.3,3466.8,2.2823]
[1718404484272,0.89426121,3467.4,3466.8,2.2823]
[1718404484273,0.5937708,3467.2,3466.8,2.2823]
[1718404484573,0.89426121,3467.4,3466.8,2.2823]
[1718404484574,3.4778608,3467.3,3466.8,2.2823]
[1718404484986,3.4778608,3467.3,3466.8,5.16678]
[1718404485187,2.88409,3467.3,3466.8,5.16678]
[1718404485353,3.4778608,3467.3,3466.8,5.16678]
[1718404485554,0.5937708,3467.2,3466.8,5.16678]
[1718404485891,2.88417,3467.2,3466.8,5.16678]
[1718404486088,3.4779408,3467.2,3466.8,5.16678]
[1718404486281,3.4779408,3467.2,3466.8,2.2823]
[1718404486651,0.5937708,3467.1,3466.8,2.2823]
[1718404487087,3.4779408,3467.2,3466.8,2.2823]
[1718404487284,0.5937708,3467.1,3466.8,2.2823]
[1718404487860,0.5937708,3467.1,3466.8,5.16672]
[1718404488061,0.5937708,3467.2,3467.0,2.88432]
[1718404489071,3.77826121,3467.4,3467.0,2.88432]
[1718404489072,0.5937708,3467.3,3467.0,2.88432]
[1718404489369,0.5937708,3467.5,3467.1,2.88425]
[1718404489576,0.5937708,3467.5,3467.2,2.88417]
[1718404489898,0.5937708,3467.4,3467.2,2.88417]
[1718404490471,0.5937708,3467.5,3467.3,2.88407]
[1718404490673,0.89426121,3467.6,3467.3,2.88407]
[1718404490674,0.5937708,3467.6,3467.5,2.88392]
[1718404490966,0.5937708,3467.7,3467.6,2.88383]
[1718404491119,0.5937708,3467.8,3467.6,2.88383]
[1718404492311,0.5937708,3467.8,3467.7,2.88375]
[1718404493583,0.5937708,3467.8,3467.7,5.7675]
[1718404493918,1.48603587,3468.3,3467.7,5.7675]
[1718404493919,0.5937708,3467.9,3467.8,2.88367]
[1718404494088,0.89426121,3468.1,3467.8,2.88367]
[1718404494089,0.5937708,3468.0,3467.8,2.88367]
[1718404494291,0.5937708,3468.0,3467.9,2.88358]
[1718404494717,0.5937708,3468.0,3467.9,5.76716]
[1718404494923,0.89426121,3468.2,3468.0,2.8835]
[1718404494924,0.5937708,3468.1,3468.0,2.8835]
[1718404495127,4.74700876,3468.7,3468.3,2.88325]
[1718404495128,0.5937708,3468.5,3468.3,2.88325]
[1718404495302,0.5937708,3468.5,3468.4,2.88317]
[1718404495506,0.5937708,3468.6,3468.4,2.88317]
[1718404495739,0.5937708,3468.6,3468.5,2.88309]
[1718404496034,0.5937708,3468.7,3468.5,2.88309]
[1718404497289,0.5937708,3468.8,3468.5,2.88309]
[1718404498011,0.5937708,3468.7,3468.5,2.88309]
[1718404498318,0.5937708,3468.8,3468.5,2.88309]
[1718404499516,0.5937708,3468.9,3468.5,2.88309]
[1718404500228,0.5937708,3469.1,3468.8,2.88284]
[1718404500530,0.5937708,3469.0,3468.8,2.88284]
[1718404500689,0.5937708,3469.1,3468.8,2.88284]
[1718404501087,0.5937708,3469.2,3468.9,2.88273]
[1718404501626,0.5937708,3469.4,3469.0,2.88267]
[1718404502001,0.5937708,3469.4,3469.3,2.88242]
[1718404502323,0.5937708,3469.6,3469.3,2.88242]
[1718404502697,0.5937708,3469.7,3469.2,2.88249]
[1718404502886,3.4758708,3469.7,3469.2,2.88249]
[1718404503237,2.8821,3469.7,3469.2,2.88249]
[1718404503528,0.5937708,3469.8,3469.1,2.88258]
[1718404503529,2.88217,3469.6,3469.1,2.88258]
[1718404504064,3.4759408,3469.6,3469.1,2.88258]
[1718404504327,2.88217,3469.6,3469.1,2.88258]
[1718404506430,0.7540362,3469.7,3469.2,2.8825]
[1718404506431,2.8821,3469.7,3469.2,2.8825]
[1718404506722,2.88218,3469.6,3469.1,2.88257]
[1718404507696,2.8821,3469.7,3469.2,2.88249]
[1718404507886,2.88201,3469.8,3469.2,2.88249]
[1718404508090,1.34534729,3470.1,3469.2,2.88249]
[1718404508091,0.5937708,3470.1,3469.8,2.882]
[1718404508290,0.5937708,3470.5,3469.9,2.88186]
[1718404508593,2.88144,3470.5,3470.0,2.88183]
[1718404509120,2.88136,3470.6,3470.1,2.88175]
[1718404509328,0.63563108,3470.5,3470.1,2.88175]
[1718404509501,0.63563108,3470.5,3470.0,2.88183]
[1718404509688,0.63563108,3470.5,3470.1,2.88175]
[1718404510415,0.450992,3470.9,3470.1,2.88175]
[1718404510620,2.88116,3470.9,3470.2,2.88166]
[1718404510833,2.88116,3470.9,3470.3,2.88152]
[1718404511131,2.88102,3471.0,3470.4,2.8815]
[1718404511513,2.88102,3471.0,3470.0,2.88179]
[1718404511514,2.88118,3470.8,3470.3,2.88157]
[1718404511719,0.576219,3470.7,3470.3,2.88157]
[1718404512230,0.576219,3470.7,3470.4,2.88151]
[1718404512531,0.576219,3470.7,3470.3,2.88157]
[1718404513110,0.576219,3470.7,3470.4,5.37379]
[1718404513303,2.88111,3470.9,3470.4,5.37379]
[1718404513630,3.33170199,3471.3,3470.6,2.88127]
[1718404513933,3.33170199,3471.3,3470.4,5.37379]
[1718404513934,1.88436713,3471.3,3470.4,2.4923]
[1718404514234,2.88124,3470.8,3470.1,2.88175]
[1718404514393,2.88124,3470.8,3470.3,2.88156]
[1718404514594,2.20995085,3471.2,3470.0,2.4923]
[1718404514595,0.77650571,3471.2,3470.7,2.88125]
[1718404515094,0.77650571,3471.2,3469.1,2.88253]
[1718404515095,2.88094,3471.1,3470.5,2.88141]
[1718404515294,2.88094,3471.1,3470.6,2.88134]
[1718404515295,0.69890477,3471.1,3470.6,2.88134]
[1718404515523,3.57983477,3471.1,3470.6,2.88134]
[1718404515831,2.8811,3470.9,3470.4,2.88144]
[1718404516131,2.88118,3470.8,3470.3,2.88158]
[1718404516330,3.57983477,3471.1,3470.0,8.2559]
[1718404516331,2.88166,3470.3,3470.0,2.4923]
[1718404516545,2.88152,3470.4,3469.5,2.4923]
[1718404516691,2.88161,3470.3,3469.8,2.882]
[1718404516893,2.88161,3470.3,3469.9,2.88191]
[1718404518839,2.88161,3470.3,3469.8,2.88198]
[1718404520533,2.88161,3470.3,3469.2,2.88248]
[1718404520534,2.8821,3469.7,3469.2,2.88248]
[1718404520738,0.2883,3470.0,3469.1,2.2505]
[1718404520907,2.88227,3469.5,3469.1,2.2505]
[1718404521106,2.88234,3469.4,3469.1,2.2505]
[1718404521931,2.88225,3469.5,3469.1,2.2505]
[1718404523636,2.88225,3469.6,3469.1,2.2505]
[1718404523637,2.88235,3469.4,3469.1,2.2505]
[1718404523842,2.88232,3469.5,3469.1,2.2505]
[1718404524309,2.88219,3469.6,3469.1,5.13309]
[1718404525101,1.8635362,3469.9,3469.2,0.05764699]
[1718404525341,1.36519722,3470.0,3469.9,2.88192]
[1718404525507,1.36433888,3470.2,3470.0,2.88184]
[1718404525698,1.36433888,3470.4,3469.9,2.8819]
[1718404526422,1.36433888,3470.4,3470.0,2.88183]
[1718404528338,2.88184,3470.0,3469.4,2.88227]
[1718404528544,4.24551281,3470.0,3469.5,2.88223]
[1718404529409,1.36367281,3469.9,3469.5,2.88223]
[1718404529943,4.24574281,3469.8,3469.3,5.13286]
[1718404530446,1.36367281,3469.7,3469.3,5.1329]
[1718404530622,1.36310309,3469.7,3469.3,5.1329]
[1718404532019,0.08860893,3469.6,3469.3,5.1329]
[1718404532630,4.24526758,3469.8,3469.3,5.1329]
[1718404533112,0.08864558,3469.7,3469.3,5.1329]
[1718404533713,0.08864558,3469.7,3469.4,2.88233]
[1718404534657,0.08864558,3469.7,3469.6,5.76434]
[1718404534809,0.08864558,3469.7,3469.6,10.89811]
[1718404535010,1.36323758,3470.4,3470.2,2.88164]
[1718404535255,0.49828691,3470.6,3470.2,2.88164]
[1718404535256,1.36323758,3470.6,3470.2,2.88164]
[1718404535545,1.36323758,3470.6,3470.1,2.88173]
[1718404535546,1.36323758,3470.5,3470.1,2.88173]
[1718404535715,1.36323758,3470.4,3470.1,2.88173]
[1718404535916,1.44612882,3470.4,3470.1,2.88173]
[1718404536433,0.08289124,3470.4,3470.1,2.88173]
[1718404538815,0.08289124,3470.4,3470.3,2.88159]
[1718404539018,0.08289124,3470.4,3470.3,8.01478]
[1718404539446,1.36323758,3470.7,3470.4,2.88143]
[1718404539659,1.95700838,3470.7,3470.4,2.88143]
[1718404540017,1.36323758,3470.7,3470.4,2.88143]
[1718404540372,0.5937708,3470.7,3470.4,2.88143]
[1718404540970,0.5937708,3470.7,3470.3,5.13317]
[1718404541268,1.95700838,3470.7,3470.4,2.88149]
[1718404541560,0.5937708,3470.7,3470.4,2.88149]
[1718404542244,0.5937708,3470.7,3470.5,2.88142]
[1718404542568,0.5937708,3470.8,3470.5,2.88142]
[1718404542771,5.13851879,3471.0,3470.5,2.88142]
[1718404542772,0.5937708,3470.9,3470.5,2.88142]
[1718404544059,3.4748808,3470.9,3470.3,2.2516]
[1718404544245,3.4750608,3470.7,3470.3,2.2516]
[1718404544420,0.5937708,3470.6,3470.3,2.2516]
[1718404544622,0.5937708,3470.5,3470.3,2.2516]
[1718404545753,0.5937708,3470.5,3469.5,2.88225]
[1718404545754,0.5937708,3470.5,3470.0,2.8818]
[1718404546122,0.5937708,3470.5,3470.2,2.88159]
[1718404546660,0.5937708,3470.5,3470.1,2.88174]
[1718404546879,0.5937708,3470.5,3469.8,2.88199]
[1718404546880,3.4753608,3470.3,3469.8,2.88199]
[1718404547181,0.5937708,3470.2,3469.8,2.88199]
[1718404547352,0.5937708,3470.1,3469.8,2.88199]
[1718404547663,0.5937708,3470.1,3469.6,2.2516]
[1718404547664,3.4757608,3469.9,3469.6,2.2516]
[1718404548164,0.5937708,3469.7,3469.6,2.2516]
[1718404548581,2.88224,3469.6,3469.0,5.13422]
[1718404548725,3.47583161,3469.6,3469.1,2.88257]
[1718404549034,2.8821,3469.7,3469.0,5.13426]
[1718404549035,3.47586161,3469.5,3469.0,5.13426]
[1718404549483,0.59359161,3469.4,3469.0,5.13426]
[1718404549643,0.59359161,3469.4,3468.6,5.13453]
[1718404549644,2.88259,3469.1,3468.6,5.13453]
[1718404549963,0.59359161,3469.1,3468.7,2.88291]
[1718404551168,0.59359161,3469.1,3468.8,2.88283]
[1718404551468,0.59359161,3469.2,3469.1,2.88259]
[1718404551668,0.59359161,3469.3,3469.1,2.88259]
[1718404551859,0.59359161,3469.4,3469.1,2.88259]
[1718404552232,0.59359161,3469.4,3469.2,2.88248]
[1718404552454,0.59359161,3469.5,3469.2,2.88248]
[1718404552632,0.59359161,3469.5,3469.4,2.88234]
[1718404552855,0.59359161,3469.6,3469.5,8.64675]
[1718404553058,0.59359161,3469.7,3469.5,2.88225]
[1718404553380,0.89426121,3469.8,3469.6,2.88217]
[1718404553531,0.59369992,3469.7,3469.6,2.88217]
[1718404554365,0.59369992,3469.7,3469.6,5.76434]
[1718404554977,0.59369992,3469.8,3469.7,5.76418]
[1718404555183,0.59369992,3469.9,3469.7,2.88209]
[1718404555476,0.59369992,3469.9,3469.8,8.64603]
[1718404555687,0.59369992,3470.0,3469.9,5.76384]
[1718404556384,0.59369992,3470.1,3470.0,5.76368]
[1718404556551,0.89426121,3470.2,3470.1,2.88176]
[1718404556882,1.19234828,3470.4,3470.2,2.88167]
[1718404556883,0.89426121,3470.3,3470.2,2.88167]
[1718404557171,1.32492419,3470.3,3470.2,2.88167]
[1718404557377,0.43066298,3470.3,3470.2,5.76334]
[1718404557582,1.32158366,3470.3,3470.2,5.76334]
[1718404559679,1.62301126,3470.3,3470.2,8.64501]
[1718404560198,1.32159463,3470.3,3470.2,8.64501]
[1718404560865,0.89093165,3470.3,3470.2,19.77162]
[1718404561206,0.59408113,3471.0,3470.9,14.00596]
[1718404561403,1.36323758,3471.7,3470.9,14.00596]
[1718404561404,0.89093165,3471.7,3470.9,2.4816]
[1718404561559,1.19234828,3471.9,3471.7,2.88043]
[1718404561560,0.89093165,3471.9,3471.7,2.88043]
[1718404561909,0.89093165,3472.1,3471.7,2.88043]
[1718404562111,0.89093165,3472.3,3471.4,2.88066]
[1718404562334,1.48477209,3472.7,3471.4,2.88066]
[1718404562335,0.89093165,3472.7,3472.5,2.87976]
[1718404562491,0.89093165,3473.0,3472.5,2.87976]
[1718404562823,0.89093165,3472.9,3472.3,2.87991]
[1718404563047,0.20832799,3472.8,3472.3,2.87991]
[1718404563396,0.89093165,3473.1,3472.3,2.87991]
[1718404563718,2.32437679,3473.1,3472.2,2.88001]
[1718404563937,0.89093165,3473.1,3472.2,2.88001]
[1718404564269,0.89093165,3473.3,3472.4,2.87981]
[1718404564473,1.43344514,3473.2,3472.4,2.87981]
[1718404564718,0.35167251,3473.1,3472.2,2.88001]
[1718404564923,0.35167251,3473.1,3472.3,2.87992]
[1718404565876,0.35167251,3473.1,3471.5,2.4816]
[1718404566128,0.35167251,3473.1,3471.5,3.91504514]
[1718404566491,1.43344514,3473.2,3471.5,3.91504514]
[1718404567791,0.0651857,3473.1,3471.5,3.91504514]
[1718404568628,1.43344514,3473.0,3471.5,2.4816]
[1718404568830,0.55,3472.9,3471.5,2.4816]
[1718404568988,1.632,3472.7,3471.5,2.4816]
[1718404569190,1.98344514,3472.6,3471.5,2.4816]
[1718404569439,2.04856495,3472.6,3471.5,2.4816]
[1718404571729,2.04856495,3472.6,3470.6,2.3434]
[1718404571905,1.632,3472.3,3470.6,2.3434]
[1718404572117,1.59664514,3472.2,3470.7,0.23434]
[1718404572321,2.21157255,3472.2,3470.7,0.23434]
[1718404573746,1.632,3471.9,3470.6,2.3434]
[1718404573902,1.43344514,3471.8,3470.6,2.3434]
[1718404574102,1.43344514,3471.8,3468.8,3.787]
[1718404574103,1.632,3471.5,3470.0,2.3434]
[1718404574337,1.59664514,3471.4,3470.0,2.3434]
[1718404574543,1.66148328,3471.4,3470.0,2.3434]
[1718404576107,0.06483814,3471.4,3470.1,1.44820074]
[1718404576307,0.06483814,3471.4,3470.4,2.3434]
[1718404576509,1.632,3472.3,3470.5,0.05761222]
[1718404576734,1.43344514,3472.2,3470.4,2.3434]
[1718404577233,0.0648642,3472.1,3470.4,5.3434]
[1718404577444,1.74647607,3472.0,3470.5,0.53434]
[1718404577606,2.29647607,3472.0,3470.5,3.0]
[1718404577808,0.06485746,3471.9,3470.4,2.3434]
[1718404578047,1.4983026,3471.9,3470.4,2.3434]
[1718404578456,1.43344514,3471.8,3470.4,2.3434]
[1718404578751,1.98344514,3471.8,3470.4,2.3434]
[1718404578936,0.06501753,3471.7,3470.6,2.3434]
[1718404579132,0.06501753,3471.7,3470.7,1.43344514]
[1718404579308,0.81874804,3472.8,3470.7,3.0]
[1718404579649,1.4986558,3472.7,3470.7,3.0]
[1718404579851,1.4986558,3472.7,3470.6,5.3434]
[1718404580147,0.62083355,3472.6,3470.7,0.557774]
[1718404580348,2.04864905,3472.5,3470.7,3.557774]
[1718404583953,4.21664905,3472.5,3470.7,3.557774]
[1718404586032,1.43344514,3472.4,3470.6,2.3434]
[1718404586331,0.55,3472.3,3470.6,2.3434]
[1718404586648,1.49873783,3472.2,3470.6,2.3434]
[1718404586847,0.55,3472.1,3470.6,2.3434]
[1718404587015,1.43344514,3472.0,3470.6,2.3434]
[1718404587215,0.75487345,3471.9,3470.6,2.3434]
[1718404587456,1.43344514,3471.8,3470.6,2.3434]
[1718404587653,0.55,3471.7,3470.6,2.3434]
[1718404587860,2.04872097,3471.7,3470.6,2.3434]
[1718404588596,1.43344514,3471.6,3470.6,2.3434]
[1718404588724,1.43344514,3471.6,3470.2,2.3434]
[1718404588725,0.7548721,3471.5,3470.2,2.3434]
[1718404588927,1.43344514,3471.4,3470.2,2.3434]
[1718404589125,1.49871084,3471.4,3470.2,2.3434]
[1718404593431,0.55,3471.3,3470.2,2.3434]
[1718404593672,1.71380343,3471.2,3470.2,2.3434]
[1718404593836,1.77888075,3471.2,3470.2,2.3434]
[1718404594165,2.168,3471.1,3469.3,2.4758]
[1718404594349,1.43344514,3471.0,3469.3,2.4758]
[1718404594553,1.43344514,3471.0,3469.4,0.24758]
[1718404594554,0.67491103,3470.9,3469.4,0.24758]
[1718404594727,0.06500384,3471.0,3469.5,3.90924514]
[1718404594921,1.68141724,3471.5,3469.5,3.90924514]
[1718404594922,0.06499709,3470.8,3469.6,2.49556181]
[1718404595165,0.06500047,3470.9,3469.8,2.4758]
[1718404595462,0.06483398,3470.8,3469.9,0.03991688]
[1718404595673,6.05893165,3471.7,3469.9,0.03991688]
[1718404595822,0.0648306,3470.7,3470.0,0.3949162]
[1718404596025,2.89450878,3471.6,3470.1,0.03991457]
[1718404596269,0.06472341,3470.6,3470.1,0.03991457]
[1718404596457,2.89450878,3471.6,3470.1,0.03991457]
[1718404596653,0.06472003,3470.5,3470.1,0.03991457]
[1718404596870,2.89450878,3471.6,3470.1,0.0576226]
[1718404597175,0.06461285,3470.4,3470.0,0.3949162]
[1718404597352,0.86447677,3471.5,3469.8,3.90924514]
[1718404597575,1.43344514,3471.4,3469.8,3.90924514]
[1718404597756,1.4981659,3471.4,3469.8,3.90924514]
[1718404598576,1.43344514,3471.4,3469.8,2.4758]
[1718404598775,0.61477302,3471.3,3469.8,2.4758]
[1718404598942,1.94993023,3471.2,3469.8,3.02338]
[1718404599566,0.06476627,3471.1,3469.8,3.02338]
[1718404599768,0.06476627,3471.1,3469.8,2.4758]
[1718404599769,1.98344514,3471.0,3469.8,2.4758]
[1718404599941,3.61044514,3471.0,3469.8,2.4758]
[1718404600141,0.06474095,3470.9,3469.8,2.4758]
[1718404600377,0.45661177,3470.8,3469.8,2.4758]
[1718404600678,0.06467117,3470.7,3469.8,2.4758]
[1718404612555,0.95560282,3470.7,3469.8,2.4758]
[1718404612750,0.06467117,3470.7,3469.8,2.4758]
[1718404613264,0.95560282,3470.7,3469.8,2.4758]
[1718404613464,0.4038008,3470.6,3469.8,2.4758]
[1718404613672,0.46777713,3470.6,3469.8,2.4758]
[1718404615385,0.06397633,3470.6,3469.8,2.4758]
[1718404615586,2.32437679,3470.8,3469.8,2.4758]
[1718404615797,1.43344514,3470.7,3469.8,2.4758]
[1718404616105,1.49742856,3470.7,3469.8,2.4758]
[1718404617362,2.38836021,3470.7,3469.8,2.4758]
[1718404617662,1.49742856,3470.7,3469.8,2.4758]
[1718404617857,0.06398342,3470.7,3469.8,2.72338]
[1718404618201,0.89093165,3471.3,3470.0,2.3346]
[1718404618364,0.06190233,3470.6,3470.0,2.3346]
[1718404618552,0.89093165,3471.4,3470.0,2.3346]
[1718404618956,0.06192596,3471.3,3470.0,2.3346]
[1718404619152,0.06192596,3471.3,3470.1,0.40156251]
[1718404620398,0.06192596,3471.3,3470.2,2.3346]
[1718404620761,0.06192596,3471.3,3470.2,3.76804514]